[Event "*** Titled Tuesday Blitz"]
[Site "Chess.com"]
[Date "2020.05.12"]
[Round "8"]
[White "Flawless_Fighter"]
[Black "SGchess01"]
[Result "0-1"]
[WhiteElo "2476"]
[BlackElo "2752"]
[TimeControl "180+1"]
[EndTime "11:33:24 PDT"]
[Termination "SGchess01 won on time"]

1. e4 {[%clk 0:03:00.9]} 1... e5 {[%clk 0:02:59.2]} 2. Nf3 {[%clk 0:03:00.9]}
2... Nc6 {[%clk 0:02:59.4]} 3. Bb5 {[%clk 0:03:01.5]} 3... a6 {[%clk 0:02:59.1]}
4. Ba4 {[%clk 0:03:02.2]} 4... d6 {[%clk 0:02:58.8]} 5. c3 {[%clk 0:03:01.5]}
5... Bd7 {[%clk 0:02:59.2]} 6. d4 {[%clk 0:02:59.2]} 6... Nf6 {[%clk 0:02:59.6]}
7. O-O {[%clk 0:02:56.5]} 7... Nxe4 {[%clk 0:02:55.8]} 8. Re1 {[%clk 0:02:48.6]}
8... f5 {[%clk 0:02:41.4]} 9. Bc2 {[%clk 0:02:11.7]} 9... Be7 {[%clk 0:02:30.4]}
10. dxe5 {[%clk 0:02:07.9]} 10... dxe5 {[%clk 0:02:26.8]} 11. Bxe4 {[%clk
0:01:57.3]} 11... fxe4 {[%clk 0:02:26.7]} 12. Rxe4 {[%clk 0:01:57.7]} 12... Bf5
{[%clk 0:02:25.7]} 13. Re1 {[%clk 0:01:55.4]} 13... e4 {[%clk 0:02:20.4]} 14.
Nd4 {[%clk 0:01:52.6]} 14... Nxd4 {[%clk 0:02:18.5]} 15. cxd4 {[%clk 0:01:51.6]}
15... O-O {[%clk 0:02:11.5]} 16. Nc3 {[%clk 0:01:51.4]} 16... Bf6 {[%clk
0:02:08.2]} 17. Be3 {[%clk 0:01:45.8]} 17... Kh8 {[%clk 0:02:08.2]} 18. Qb3
{[%clk 0:01:43.7]} 18... b6 {[%clk 0:02:08.2]} 19. Rad1 {[%clk 0:01:43]} 19...
Qd7 {[%clk 0:02:05.8]} 20. d5 {[%clk 0:01:39.4]} 20... Rae8 {[%clk 0:02:04.4]}
21. Qc4 {[%clk 0:01:32.2]} 21... Be5 {[%clk 0:01:57.6]} 22. Bd4 {[%clk
0:01:22.7]} 22... Bd6 {[%clk 0:01:55.3]} 23. Qe2 {[%clk 0:01:12.3]} 23... Bg4
{[%clk 0:01:53.6]} 24. Qe3 {[%clk 0:01:04.5]} 24... Bxd1 {[%clk 0:01:52]} 25.
Rxd1 {[%clk 0:01:05.4]} 25... Qg4 {[%clk 0:01:46.7]} 26. h3 {[%clk 0:01:02.7]}
26... Qg6 {[%clk 0:01:45.3]} 27. Qe2 {[%clk 0:00:58.3]} 27... b5 {[%clk
0:01:41.3]} 28. Re1 {[%clk 0:00:54]} 28... Rf4 {[%clk 0:01:23]} 29. Be3 {[%clk
0:00:52]} 29... Rf5 {[%clk 0:01:20.4]} 30. Bd4 {[%clk 0:00:51.6]} 30... h6
{[%clk 0:01:19]} 31. Nxe4 {[%clk 0:00:44.2]} 31... Rxd5 {[%clk 0:01:16.3]} 32.
Bc3 {[%clk 0:00:36.2]} 32... b4 {[%clk 0:01:14.8]} 33. Qc4 {[%clk 0:00:25.3]}
33... Rb5 {[%clk 0:00:13.9]} 34. Bd2 {[%clk 0:00:13.1]} 34... Qe6 {[%clk
0:00:13.9]} 35. Qxe6 {[%clk 0:00:09.9]} 35... Rxe6 {[%clk 0:00:13.5]} 36. f3
{[%clk 0:00:10.8]} 36... Be5 {[%clk 0:00:11.9]} 37. Rc1 {[%clk 0:00:08.9]} 37...
Bxb2 {[%clk 0:00:09.3]} 38. Rxc7 {[%clk 0:00:08.3]} 38... a5 {[%clk 0:00:10]}
39. Bf4 {[%clk 0:00:05.1]} 39... Be5 {[%clk 0:00:09.2]} 40. Rc8+ {[%clk
0:00:04.3]} 40... Kh7 {[%clk 0:00:09.8]} 41. Bxe5 {[%clk 0:00:02.5]} 41... Rexe5
{[%clk 0:00:09.3]} 42. Nd6 {[%clk 0:00:02.3]} 42... Rbd5 {[%clk 0:00:08.6]} 43.
Nf7 {[%clk 0:00:01.8]} 43... Re2 {[%clk 0:00:08.9]} 0-1

[Event "*** Titled Tuesday Blitz"]
[Site "Chess.com"]
[Date "2020.05.12"]
[Round "8"]
[White "Nafania1"]
[Black "javirec"]
[Result "1-0"]
[WhiteElo "2437"]
[BlackElo "2286"]
[TimeControl "180+1"]
[EndTime "11:33:26 PDT"]
[Termination "Nafania1 won by resignation"]

1. e4 {[%clk 0:03:00.9]} 1... e5 {[%clk 0:02:49.5]} 2. Nf3 {[%clk 0:03:00.7]}
2... Nc6 {[%clk 0:02:49.1]} 3. Bb5 {[%clk 0:03:00.6]} 3... a6 {[%clk 0:02:48.8]}
4. Ba4 {[%clk 0:03:00.8]} 4... Nf6 {[%clk 0:02:49.3]} 5. O-O {[%clk 0:03:00.8]}
5... Be7 {[%clk 0:02:49.8]} 6. Re1 {[%clk 0:03:00.8]} 6... b5 {[%clk 0:02:50.2]}
7. Bb3 {[%clk 0:03:01]} 7... d6 {[%clk 0:02:50.8]} 8. c3 {[%clk 0:03:01.5]} 8...
O-O {[%clk 0:02:51.1]} 9. d4 {[%clk 0:03:01.7]} 9... Bg4 {[%clk 0:02:46.3]} 10.
Be3 {[%clk 0:03:01.1]} 10... Na5 {[%clk 0:02:37.7]} 11. dxe5 {[%clk 0:02:56.4]}
11... Bxf3 {[%clk 0:02:37.7]} 12. Qxf3 {[%clk 0:02:55.5]} 12... dxe5 {[%clk
0:02:37.8]} 13. Nd2 {[%clk 0:02:45.5]} 13... Nxb3 {[%clk 0:02:16]} 14. Nxb3
{[%clk 0:02:37.8]} 14... Qd7 {[%clk 0:02:14.9]} 15. Nc5 {[%clk 0:02:32.7]} 15...
Qc6 {[%clk 0:02:08.3]} 16. b4 {[%clk 0:02:32.6]} 16... a5 {[%clk 0:01:52.7]} 17.
a3 {[%clk 0:02:31.4]} 17... Rfd8 {[%clk 0:01:47.6]} 18. Qf5 {[%clk 0:02:20.1]}
18... Bxc5 {[%clk 0:01:40]} 19. Bxc5 {[%clk 0:02:15.4]} 19... Qe6 {[%clk
0:01:37.9]} 20. Qxe6 {[%clk 0:02:01.6]} 20... fxe6 {[%clk 0:01:38.8]} 21. f3
{[%clk 0:02:01.9]} 21... Kf7 {[%clk 0:01:33.2]} 22. Red1 {[%clk 0:01:55]} 22...
Nd7 {[%clk 0:01:29.7]} 23. Be3 {[%clk 0:01:52.1]} 23... Nb6 {[%clk 0:01:16.3]}
24. Bxb6 {[%clk 0:01:38.6]} 24... cxb6 {[%clk 0:01:13.7]} 25. Kf2 {[%clk
0:01:32.4]} 25... Rac8 {[%clk 0:01:11]} 26. Rxd8 {[%clk 0:01:27.7]} 26... Rxd8
{[%clk 0:01:10.9]} 27. Ke3 {[%clk 0:01:26.1]} 27... Rc8 {[%clk 0:01:08.6]} 28.
Kd3 {[%clk 0:01:25.7]} 28... Rd8+ {[%clk 0:01:08.8]} 29. Kc2 {[%clk 0:01:25.4]}
29... Ke7 {[%clk 0:00:53.6]} 30. Rb1 {[%clk 0:01:25.6]} 30... Ra8 {[%clk
0:00:48.1]} 31. Kb3 {[%clk 0:01:21.6]} 31... Kd6 {[%clk 0:00:45.3]} 32. Rd1+
{[%clk 0:01:21.2]} 32... Kc6 {[%clk 0:00:45.5]} 33. c4 {[%clk 0:01:10.4]} 33...
bxc4+ {[%clk 0:00:41.3]} 34. Kxc4 {[%clk 0:01:10.5]} 34... axb4 {[%clk
0:00:29.9]} 35. Kxb4 {[%clk 0:01:09.2]} 35... b5 {[%clk 0:00:28.3]} 36. Rc1+
{[%clk 0:01:06]} 36... Kb6 {[%clk 0:00:28.4]} 37. Rd1 {[%clk 0:01:06.1]} 37...
Kc6 {[%clk 0:00:22.1]} 38. Kb3 {[%clk 0:01:03.6]} 38... Ra7 {[%clk 0:00:19.4]}
39. Rd8 {[%clk 0:01:03.2]} 39... Kc5 {[%clk 0:00:16.9]} 40. Rc8+ {[%clk
0:00:57]} 40... Kd4 {[%clk 0:00:13.1]} 41. Rb8 {[%clk 0:00:56.4]} 41... Kc5
{[%clk 0:00:11.3]} 42. h4 {[%clk 0:00:55.2]} 42... h6 {[%clk 0:00:10.3]} 43. g4
{[%clk 0:00:53.6]} 43... Rd7 {[%clk 0:00:10]} 44. Rc8+ {[%clk 0:00:52]} 44...
Kb6 {[%clk 0:00:10]} 45. Rc3 {[%clk 0:00:51.7]} 45... Rd4 {[%clk 0:00:09]} 46.
g5 {[%clk 0:00:50.2]} 46... hxg5 {[%clk 0:00:08.5]} 47. hxg5 {[%clk 0:00:50.6]}
47... Rd7 {[%clk 0:00:09.1]} 48. Kb4 {[%clk 0:00:47.4]} 48... Rd4+ {[%clk
0:00:08.3]} 49. Kb3 {[%clk 0:00:47.4]} 49... Rd7 {[%clk 0:00:08.9]} 50. a4
{[%clk 0:00:46.3]} 50... bxa4+ {[%clk 0:00:08.4]} 51. Kxa4 {[%clk 0:00:46.7]}
51... Rd4+ {[%clk 0:00:08.9]} 52. Kb3 {[%clk 0:00:46.9]} 52... Rd7 {[%clk
0:00:09.5]} 53. Kc4 {[%clk 0:00:46]} 53... Rc7+ {[%clk 0:00:09.4]} 54. Kd3
{[%clk 0:00:46.3]} 54... Rf7 {[%clk 0:00:07.7]} 55. Ke3 {[%clk 0:00:45.3]} 55...
Rd7 {[%clk 0:00:07.6]} 56. Ra3 {[%clk 0:00:44.1]} 56... Kc6 {[%clk 0:00:07.8]}
57. Ra6+ {[%clk 0:00:43.5]} 57... Kc7 {[%clk 0:00:07.1]} 58. Rxe6 {[%clk
0:00:43.5]} 58... Rf7 {[%clk 0:00:07.4]} 59. Rxe5 {[%clk 0:00:43.4]} 59... Kd6
{[%clk 0:00:08.2]} 60. Rd5+ {[%clk 0:00:42.2]} 60... Ke6 {[%clk 0:00:08.1]} 61.
Ra5 {[%clk 0:00:41.8]} 61... Ra7 {[%clk 0:00:09]} 62. Rxa7 {[%clk 0:00:41.1]}
1-0

[Event "*** Titled Tuesday Blitz"]
[Site "Chess.com"]
[Date "2020.05.12"]
[Round "8"]
[White "ZEN-22"]
[Black "Duong57"]
[Result "0-1"]
[WhiteElo "2413"]
[BlackElo "2275"]
[TimeControl "180+1"]
[EndTime "11:33:26 PDT"]
[Termination "Duong57 won by checkmate"]

1. e4 {[%clk 0:03:00.9]} 1... c5 {[%clk 0:02:59.6]} 2. b4 {[%clk 0:03:00]} 2...
cxb4 {[%clk 0:02:56.7]} 3. a3 {[%clk 0:02:59.5]} 3... d5 {[%clk 0:02:52.7]} 4.
exd5 {[%clk 0:02:58.7]} 4... Qxd5 {[%clk 0:02:52.5]} 5. Nf3 {[%clk 0:02:57.8]}
5... e5 {[%clk 0:02:47.7]} 6. c4 {[%clk 0:02:56]} 6... bxc3 {[%clk 0:02:44.5]}
7. Nxc3 {[%clk 0:02:54.8]} 7... Qe6 {[%clk 0:02:43.3]} 8. Bb5+ {[%clk
0:02:42.8]} 8... Nc6 {[%clk 0:02:43.1]} 9. O-O {[%clk 0:02:39.2]} 9... Bd7
{[%clk 0:02:37.1]} 10. Bxc6 {[%clk 0:02:36.3]} 10... bxc6 {[%clk 0:02:17.4]} 11.
Nxe5 {[%clk 0:02:37.2]} 11... Bd6 {[%clk 0:02:16.7]} 12. Re1 {[%clk 0:02:30.7]}
12... Ne7 {[%clk 0:02:04.3]} 13. d4 {[%clk 0:01:58.3]} 13... O-O {[%clk
0:01:33.7]} 14. Ne4 {[%clk 0:01:19.5]} 14... Bxe5 {[%clk 0:01:32.8]} 15. dxe5
{[%clk 0:01:18.9]} 15... Nd5 {[%clk 0:01:24.6]} 16. Nc5 {[%clk 0:01:07.9]} 16...
Qe7 {[%clk 0:01:24.3]} 17. Be3 {[%clk 0:00:56.1]} 17... Rfd8 {[%clk 0:00:58]}
18. Bd4 {[%clk 0:00:53.8]} 18... Bf5 {[%clk 0:00:42.7]} 19. Qf3 {[%clk
0:00:53.9]} 19... Qg5 {[%clk 0:00:42.3]} 20. h4 {[%clk 0:00:52.3]} 20... Qg6
{[%clk 0:00:40.4]} 21. e6 {[%clk 0:00:44.5]} 21... fxe6 {[%clk 0:00:28.2]} 22.
h5 {[%clk 0:00:40.5]} 22... Qf7 {[%clk 0:00:27.9]} 23. Qg3 {[%clk 0:00:37.9]}
23... Nf6 {[%clk 0:00:26.8]} 24. Be5 {[%clk 0:00:28.1]} 24... Rd5 {[%clk
0:00:25.4]} 25. Rac1 {[%clk 0:00:21.7]} 25... Nxh5 {[%clk 0:00:22.8]} 26. Qf3
{[%clk 0:00:21.8]} 26... Nf6 {[%clk 0:00:20.5]} 27. Bxf6 {[%clk 0:00:20.5]}
27... Qxf6 {[%clk 0:00:20.1]} 28. Ne4 {[%clk 0:00:20.5]} 28... Bxe4 {[%clk
0:00:19.7]} 29. Qxe4 {[%clk 0:00:21.4]} 29... Rad8 {[%clk 0:00:16.5]} 30. Rxc6
{[%clk 0:00:20.3]} 30... e5 {[%clk 0:00:16.9]} 31. Rc8 {[%clk 0:00:18.9]} 31...
Kf7 {[%clk 0:00:11.9]} 32. Rxd8 {[%clk 0:00:17.5]} 32... Rxd8 {[%clk 0:00:10.7]}
33. Qb7+ {[%clk 0:00:18.4]} 33... Qe7 {[%clk 0:00:10]} 34. Qe4 {[%clk
0:00:19.3]} 34... Qf6 {[%clk 0:00:09.9]} 35. Qxh7 {[%clk 0:00:18.8]} 35... Qg6
{[%clk 0:00:09.8]} 36. Qh3 {[%clk 0:00:18.8]} 36... Re8 {[%clk 0:00:09.1]} 37.
Qf3+ {[%clk 0:00:19.2]} 37... Qf6 {[%clk 0:00:08.9]} 38. Qb7+ {[%clk 0:00:20.1]}
38... Re7 {[%clk 0:00:09.5]} 39. Qe4 {[%clk 0:00:21]} 39... Qe6 {[%clk
0:00:09.4]} 40. g3 {[%clk 0:00:21.3]} 40... Qf6 {[%clk 0:00:09.7]} 41. Qg2
{[%clk 0:00:22.2]} 41... Kg8 {[%clk 0:00:09.7]} 42. Qf1 {[%clk 0:00:23.1]} 42...
Kf7 {[%clk 0:00:09.9]} 43. Qe2 {[%clk 0:00:24]} 43... Qe6 {[%clk 0:00:10.3]} 44.
Qe4 {[%clk 0:00:23.5]} 44... Qf6 {[%clk 0:00:11.2]} 45. Qg4 {[%clk 0:00:23.2]}
45... Kg8 {[%clk 0:00:11.6]} 46. Qh5 {[%clk 0:00:23.4]} 46... g6 {[%clk
0:00:11.3]} 47. Qe2 {[%clk 0:00:24.3]} 47... Kg7 {[%clk 0:00:11.6]} 48. Kg2
{[%clk 0:00:25.2]} 48... e4 {[%clk 0:00:11.5]} 49. Qxe4 {[%clk 0:00:26.1]} 49...
Rxe4 {[%clk 0:00:11.2]} 50. Re3 {[%clk 0:00:27]} 50... Qc6 {[%clk 0:00:10.8]}
51. Rxe4 {[%clk 0:00:27.9]} 51... Qxe4+ {[%clk 0:00:10.9]} 52. f3 {[%clk
0:00:28.8]} 52... Qd3 {[%clk 0:00:11.4]} 53. g4 {[%clk 0:00:29.7]} 53... Qxa3
{[%clk 0:00:11.9]} 54. Kg3 {[%clk 0:00:30.6]} 54... Qb2 {[%clk 0:00:12.7]} 55.
g5 {[%clk 0:00:31.5]} 55... a5 {[%clk 0:00:13.6]} 56. Kg4 {[%clk 0:00:32.4]}
56... a4 {[%clk 0:00:14.5]} 57. f4 {[%clk 0:00:33.3]} 57... a3 {[%clk
0:00:15.4]} 58. f5 {[%clk 0:00:34.2]} 58... a2 {[%clk 0:00:16.3]} 59. f6+ {[%clk
0:00:35.1]} 59... Kf7 {[%clk 0:00:16.2]} 60. Kf4 {[%clk 0:00:36]} 60... a1=Q
{[%clk 0:00:16.4]} 61. Ke4 {[%clk 0:00:36]} 61... Qe2+ {[%clk 0:00:16.9]} 62.
Kd5 {[%clk 0:00:36.9]} 62... Qad1+ {[%clk 0:00:17.2]} 63. Kc5 {[%clk 0:00:36.3]}
63... Qec2+ {[%clk 0:00:18.1]} 64. Kb4 {[%clk 0:00:36]} 64... Qdb1+ {[%clk
0:00:19]} 65. Ka3 {[%clk 0:00:36.7]} 65... Qca2# {[%clk 0:00:19.9]} 0-1

[Event "*** Titled Tuesday Blitz"]
[Site "Chess.com"]
[Date "2020.05.12"]
[Round "8"]
[White "ChristopherYoo"]
[Black "1stSecond"]
[Result "0-1"]
[WhiteElo "2895"]
[BlackElo "2721"]
[TimeControl "180+1"]
[EndTime "11:33:28 PDT"]
[Termination "1stSecond won on time"]

1. e4 {[%clk 0:03:00.9]} 1... e5 {[%clk 0:03:00]} 2. Nf3 {[%clk 0:02:59.8]} 2...
Nc6 {[%clk 0:03:00.2]} 3. Bb5 {[%clk 0:02:58.7]} 3... a6 {[%clk 0:03:00.3]} 4.
Ba4 {[%clk 0:02:57.4]} 4... Nge7 {[%clk 0:02:55.3]} 5. d4 {[%clk 0:02:52.1]}
5... exd4 {[%clk 0:02:50.2]} 6. c3 {[%clk 0:02:52.3]} 6... g6 {[%clk 0:02:49.2]}
7. cxd4 {[%clk 0:02:51]} 7... b5 {[%clk 0:02:45.4]} 8. Bb3 {[%clk 0:02:50.8]}
8... Bg7 {[%clk 0:02:41.8]} 9. d5 {[%clk 0:02:50.4]} 9... Na5 {[%clk 0:02:41.6]}
10. Bd2 {[%clk 0:02:50.3]} 10... c5 {[%clk 0:02:41.6]} 11. Bc3 {[%clk
0:02:03.9]} 11... O-O {[%clk 0:02:19.8]} 12. Bxg7 {[%clk 0:01:48.9]} 12... Kxg7
{[%clk 0:02:20.7]} 13. O-O {[%clk 0:01:41.4]} 13... d6 {[%clk 0:02:20.5]} 14.
Nc3 {[%clk 0:01:39.7]} 14... Bg4 {[%clk 0:02:20]} 15. h3 {[%clk 0:01:39.8]}
15... Bxf3 {[%clk 0:02:20.2]} 16. Qxf3 {[%clk 0:01:40.7]} 16... Ng8 {[%clk
0:02:01.6]} 17. Qg3 {[%clk 0:01:23.3]} 17... Re8 {[%clk 0:01:57.7]} 18. Rae1
{[%clk 0:01:00.6]} 18... Qf6 {[%clk 0:01:57.2]} 19. f4 {[%clk 0:00:41.8]} 19...
Qd4+ {[%clk 0:01:38.4]} 20. Kh2 {[%clk 0:00:41.5]} 20... b4 {[%clk 0:01:38.7]}
21. Rd1 {[%clk 0:00:40.2]} 21... Qf6 {[%clk 0:01:38.7]} 22. e5 {[%clk
0:00:34.5]} 22... Qf5 {[%clk 0:01:38.8]} 23. Ne2 {[%clk 0:00:18.2]} 23... Nxb3
{[%clk 0:00:50.4]} 24. Qxb3 {[%clk 0:00:19.1]} 24... Nh6 {[%clk 0:00:50.9]} 25.
Ng3 {[%clk 0:00:13.7]} 25... Qd7 {[%clk 0:00:50]} 26. Ne4 {[%clk 0:00:06.3]}
26... Nf5 {[%clk 0:00:44.6]} 27. g4 {[%clk 0:00:04.9]} 27... Nd4 {[%clk
0:00:43]} 28. Qg3 {[%clk 0:00:03.2]} 28... dxe5 {[%clk 0:00:41.7]} 29. fxe5
{[%clk 0:00:02.6]} 29... Qxd5 {[%clk 0:00:39]} 30. Nf6 {[%clk 0:00:02.8]} 30...
Qxe5 {[%clk 0:00:39.5]} 31. Nxe8+ {[%clk 0:00:02]} 31... Qxe8 {[%clk 0:00:40.4]}
32. Rde1 {[%clk 0:00:01.8]} 32... Qb8 {[%clk 0:00:34.5]} 33. Qe5+ {[%clk
0:00:01.7]} 33... Qxe5+ {[%clk 0:00:34.2]} 34. Rxe5 {[%clk 0:00:02.6]} 34... Ne6
{[%clk 0:00:33.8]} 35. Kg3 {[%clk 0:00:02]} 35... Rd8 {[%clk 0:00:33.7]} 36. Rf3
{[%clk 0:00:01.8]} 36... Rd2 {[%clk 0:00:33.4]} 37. Rf2 {[%clk 0:00:02.2]} 37...
Rd3+ {[%clk 0:00:33.1]} 38. Rf3 {[%clk 0:00:02.7]} 38... Rd1 {[%clk 0:00:33.7]}
39. Kg2 {[%clk 0:00:02.1]} 39... a5 {[%clk 0:00:31.1]} 40. a3 {[%clk 0:00:02.1]}
40... Rd2+ {[%clk 0:00:29.2]} 41. Rf2 {[%clk 0:00:01.9]} 41... Rd4 {[%clk
0:00:26.4]} 42. axb4 {[%clk 0:00:02.1]} 42... axb4 {[%clk 0:00:25.5]} 43. Re1
{[%clk 0:00:01.6]} 43... Nf4+ {[%clk 0:00:24.5]} 44. Kg3 {[%clk 0:00:01.8]}
44... Nd3 {[%clk 0:00:25]} 45. Ref1 {[%clk 0:00:01.3]} 45... Nxf2 {[%clk
0:00:25.1]} 46. Rxf2 {[%clk 0:00:02.2]} 46... Rd3+ {[%clk 0:00:24.4]} 47. Kg2
{[%clk 0:00:02.3]} 47... Rb3 {[%clk 0:00:24.1]} 48. g5 {[%clk 0:00:02.2]} 48...
c4 {[%clk 0:00:23.7]} 49. Rc2 {[%clk 0:00:01.2]} 49... c3 {[%clk 0:00:23.5]} 50.
bxc3 {[%clk 0:00:02.1]} 50... Rxc3 {[%clk 0:00:22]} 51. Rd2 {[%clk 0:00:01.5]}
51... Rc5 {[%clk 0:00:20.3]} 52. h4 {[%clk 0:00:01.1]} 52... Rb5 {[%clk
0:00:20.5]} 0-1

[Event "*** Titled Tuesday Blitz"]
[Site "Chess.com"]
[Date "2020.05.12"]
[Round "8"]
[White "Y0ung_Capablanca"]
[Black "ENEASZ"]
[Result "0-1"]
[WhiteElo "2691"]
[BlackElo "2521"]
[TimeControl "180+1"]
[EndTime "11:33:28 PDT"]
[Termination "ENEASZ won by checkmate"]

1. d4 {[%clk 0:03:00.9]} 1... d5 {[%clk 0:02:59.8]} 2. c4 {[%clk 0:02:56.7]}
2... e6 {[%clk 0:02:59.9]} 3. Nf3 {[%clk 0:02:53.3]} 3... Nf6 {[%clk 0:02:59.9]}
4. g3 {[%clk 0:02:51.7]} 4... Be7 {[%clk 0:02:59]} 5. Bg2 {[%clk 0:02:51.1]}
5... O-O {[%clk 0:02:58.9]} 6. Nc3 {[%clk 0:02:51.7]} 6... dxc4 {[%clk
0:02:58.5]} 7. Ne5 {[%clk 0:02:51.2]} 7... Nc6 {[%clk 0:02:58.4]} 8. Bxc6 {[%clk
0:02:50.6]} 8... bxc6 {[%clk 0:02:59.3]} 9. Nxc6 {[%clk 0:02:51.5]} 9... Qe8
{[%clk 0:02:59.7]} 10. Nxe7+ {[%clk 0:02:52.4]} 10... Qxe7 {[%clk 0:03:00.6]}
11. Qa4 {[%clk 0:02:53.2]} 11... e5 {[%clk 0:02:59.7]} 12. dxe5 {[%clk
0:02:48.9]} 12... Qxe5 {[%clk 0:03:00.6]} 13. Bf4 {[%clk 0:02:46]} 13... Qh5
{[%clk 0:02:57]} 14. f3 {[%clk 0:02:43.6]} 14... Be6 {[%clk 0:02:53.2]} 15. O-O
{[%clk 0:02:33.9]} 15... Rab8 {[%clk 0:02:23.8]} 16. Qc2 {[%clk 0:02:27.8]}
16... Qc5+ {[%clk 0:02:17.6]} 17. Kg2 {[%clk 0:02:23.2]} 17... Nd5 {[%clk
0:02:14.4]} 18. Nxd5 {[%clk 0:02:21.7]} 18... Bxd5 {[%clk 0:02:11.2]} 19. Rad1
{[%clk 0:02:08.8]} 19... Rfe8 {[%clk 0:02:09]} 20. e4 {[%clk 0:02:08.4]} 20...
Be6 {[%clk 0:02:04.9]} 21. Qf2 {[%clk 0:01:39.5]} 21... Qa5 {[%clk 0:02:00]} 22.
Bd2 {[%clk 0:01:33.6]} 22... Qxa2 {[%clk 0:01:53.1]} 23. Bc3 {[%clk 0:01:33.4]}
23... Qb3 {[%clk 0:01:36.3]} 24. Qxa7 {[%clk 0:01:23.6]} 24... Qc2+ {[%clk
0:01:33.9]} 25. Rd2 {[%clk 0:01:21.2]} 25... Qb3 {[%clk 0:01:34.3]} 26. Qxc7
{[%clk 0:01:15.9]} 26... h6 {[%clk 0:01:32.7]} 27. g4 {[%clk 0:01:01.1]} 27...
Rbc8 {[%clk 0:01:16.7]} 28. Qf4 {[%clk 0:00:55.3]} 28... Qb7 {[%clk 0:01:06.6]}
29. Rfd1 {[%clk 0:00:52.8]} 29... Rc5 {[%clk 0:00:53.3]} 30. h4 {[%clk
0:00:45.3]} 30... Qb8 {[%clk 0:00:45.1]} 31. Qe3 {[%clk 0:00:36.4]} 31... Rb5
{[%clk 0:00:35.3]} 32. Rd6 {[%clk 0:00:28.2]} 32... Kh7 {[%clk 0:00:20.1]} 33.
R1d2 {[%clk 0:00:23.3]} 33... Qc8 {[%clk 0:00:19.2]} 34. Kg3 {[%clk 0:00:16.8]}
34... f6 {[%clk 0:00:17.4]} 35. Qf4 {[%clk 0:00:12.4]} 35... Qa8 {[%clk
0:00:10.2]} 36. Qe3 {[%clk 0:00:07.3]} 36... Qc8 {[%clk 0:00:10.1]} 37. Qd4
{[%clk 0:00:06.6]} 37... Re7 {[%clk 0:00:07.3]} 38. Rd8 {[%clk 0:00:06.1]} 38...
Qc7+ {[%clk 0:00:07]} 39. Qd6 {[%clk 0:00:04.3]} 39... Qb7 {[%clk 0:00:07.1]}
40. Rf8 {[%clk 0:00:03.5]} 40... Bxg4 {[%clk 0:00:07]} 41. Qd8 {[%clk
0:00:03.2]} 41... Bxf3 {[%clk 0:00:05.6]} 42. Rh8+ {[%clk 0:00:02]} 42... Kg6
{[%clk 0:00:06.2]} 43. h5+ {[%clk 0:00:02.4]} 43... Rxh5 {[%clk 0:00:05.3]} 44.
Kxf3 {[%clk 0:00:01.6]} 44... Qxe4+ {[%clk 0:00:05]} 45. Kg3 {[%clk 0:00:01.4]}
45... Rg5+ {[%clk 0:00:05.1]} 46. Kh2 {[%clk 0:00:01.6]} 46... Qh4# {[%clk
0:00:05]} 0-1